[Event "FISCA Open 2022"]
[Site "Cap Aurora"]
[Date "2022.06.28"]
[Round "8.11"]
[White "Nacu, Mihai"]
[Black "Corbu, George-Alexandru"]
[Result "1-0"]
[ECO "A50"]
[WhiteElo "1641"]
[BlackElo "1914"]
[Annotator "NA RC"]
[PlyCount "73"]
[EventDate "2022.06.22"]
[EventType "swiss"]
[EventCountry "ROU"]
[SourceTitle "playchess.com"]
[Source "ChessBase"]
[SourceQuality "1"]
[TimeControl "5400+30"]

1. c4 {[%emt 0:00:08]} b6 {[%emt 0:00:42]} 2. Nc3 {[%emt 0:00:33]} Bb7 {[%emt 0:00:06]} 3. d4 {[%emt 0:00:18]} Nf6 {[%emt 0:00:00]} 4. f3 {[%emt 0:00:46]} e6 {[%emt 0:02:18]} 5. e4 {[%emt 0:01:21]} d5 {[%emt 0:00:57]} 6. e5 {[%emt 0:06:09]} Nfd7 {[%emt 0:00:20]} 7. Be3 {[%emt 0:02:43]} c5 {[%emt 0:05:20]} 8. cxd5 {[%emt 0:03:27]} exd5 {[%emt 0:00:25]} 9. f4 {[%emt 0:01:59]} a6 {[%emt 0:03:52]} 10. Nf3 {[%emt 0:02:08]} cxd4 {[%emt 0:05:01]} 11. Nxd4 {[%emt 0:01:35]} ({Much less strong is} 11. Bxd4 $6 Bc5 $14) 11... Nc5 {[%emt 0:00:51]} 12. Be2 {[%emt 0:03:17]} Ne4 {[%emt 0:03:24]} 13. Nxe4 {[%emt 0:02:27]} dxe4 {[%emt 0:00:06]} 14. O-O {[%emt 0:00:13]} Bc5 {[%emt 0:01:47] [#]} 15. Nf5 $1 {[%emt 0:03:43]} Bxe3+ $16 {[%emt 0:00:24]} 16. Nxe3 {[%emt 0:00:06]} O-O {[%emt 0:00:06]} 17. Nf5 {[%emt 0:01:43]} b5 {[%emt 0:05:45]} 18. Qxd8 {[%emt 0:01:47]} Rxd8 {[%emt 0:00:05]} 19. Nd6 {[%emt 0:00:08]} Ra7 {[%emt 0:00:37]} 20. Rac1 {[%emt 0:01:02]} Bc6 {[%emt 0:02:24]} 21. Rc5 {[%emt 0:00:50]} f6 {[%emt 0:01:54]} 22. Rfc1 {[%emt 0:01:20]} fxe5 {[%emt 0:01:47]} 23. fxe5 {[%emt 0:01:00]} Re7 {[%emt 0:00:38]} 24. Bd1 {[%emt 0:08:29]} g6 {[%emt 0:06:33]} 25. Bb3+ {[%emt 0:00:18]} Kg7 {[%emt 0:00:13]} 26. Rxc6 {[%emt 0:04:51]} Nxc6 {[%emt 0:00:04]} 27. Rxc6 {[%emt 0:00:05]} e3 {[%emt 0:02:54]} 28. e6 {[%emt 0:05:31]} Rf8 {[%emt 0:02:22]} 29. Rc1 {[%emt 0:03:07]} a5 {[%emt 0:09:03]} 30. Nxb5 {[%emt 0:02:29]} a4 {[%emt 0:01:22]} 31. Bc4 {[%emt 0:00:54]} Rc8 {[%emt 0:01:24]} 32. b3 {[%emt 0:03:55]} Rxe6 {[%emt 0:01:32]} 33. Re1 {[%emt 0:01:53]} Re7 {[%emt 0:01:03]} 34. Nc3 {[%emt 0:00:39]} axb3 {[%emt 0:00:19]} 35. axb3 {[%emt 0:00:06]} Re5 {[%emt 0:00:28]} 36. Nd5 {[%emt 0:00:53]} e2 {[%emt 0:00:06]} 37. Rxe2 {[%emt 0:01:17]} 1-0

[Event "FISCA Open 2022"]
[Site "Cap Aurora"]
[Date "2022.06.28"]
[Round "8.12"]
[White "Bujorean, Dorel"]
[Black "Nicolae, Marian-Valentin"]
[Result "0-1"]
[ECO "A93"]
[WhiteElo "1608"]
[BlackElo "1886"]
[Annotator "NA RC"]
[PlyCount "124"]
[EventDate "2022.06.22"]
[EventType "swiss"]
[EventCountry "ROU"]
[SourceTitle "playchess.com"]
[Source "ChessBase"]
[SourceQuality "1"]
[TimeControl "5400+30"]

1. d4 {[%emt 1:31:00]} d5 {[%emt 1:31:00]} 2. Nf3 {[%emt 0:00:30]} f5 {[%emt 0:00:30]} 3. g3 {[%emt 0:00:30]} Nf6 {[%emt 0:00:30]} 4. Bg2 {[%emt 0:00:30]} e6 {[%emt 0:00:30]} 5. O-O {[%emt 0:00:30]} Be7 {[%emt 0:00:30]} 6. Nbd2 {[%emt 0:00:30]} O-O {[%emt 0:00:30]} 7. c4 {[%emt 0:00:30]} c6 {[%emt 0:00:30]} 8. b3 {[%emt 0:00:30]} Bd7 {[%emt 0:00:30]} 9. Bb2 {[%emt 0:00:30]} Ne4 {[%emt 0:00:30]} 10. Ne5 {[%emt 0:01:00]} Be8 {[%emt 0:00:30]} 11. Ndf3 {[%emt 0:00:30]} Bh5 {[%emt 0:00:30]} 12. Qc2 {[%emt 0:00:30]} g5 {[%emt 0:00:30]} 13. e3 {[%emt 0:00:30]} g4 {[%emt 0:00:30]} 14. Nd2 {[%emt 0:01:00]} Nxd2 {[%emt 0:00:30]} 15. Qxd2 {[%emt 0:00:30]} Bd6 $16 {[%emt 0:00:30]} 16. Nd3 {[%emt 0:00:30]} Nd7 {[%emt 0:00:30]} 17. Nf4 {[%emt 0:00:30]} Bxf4 {[%emt 0:00:30]} 18. exf4 {[%emt 0:00:30]} Nf6 {[%emt 0:00:30]} 19. Qe2 {[%emt 0:00:30]} Re8 {[%emt 0:00:30]} 20. f3 gxf3 {[%emt 0:00:30]} 21. Bxf3 {[%emt 0:01:00]} Bxf3 {[%emt 0:00:30]} 22. Rxf3 {[%emt 0:00:30]} Qd7 {[%emt 0:00:30]} 23. Rd1 {[%emt 0:00:30]} Kf7 24. Bc3 {[%emt 0:00:30]} Rg8 {[%emt 0:01:00]} 25. Be1 {[%emt 0:00:30]} Rae8 {[%emt 0:00:30]} 26. Rf2 {[%emt 0:00:30]} Rg6 {[%emt 0:00:30]} 27. Rg2 {[%emt 0:00:30]} Reg8 {[%emt 0:00:30]} 28. c5 {[%emt 0:00:30]} h5 {[%emt 0:00:30]} 29. h4 {[%emt 0:00:30]} Rg4 {[%emt 0:00:30]} 30. b4 {[%emt 0:00:30]} Ne4 {[%emt 0:00:30]} 31. Rd3 {[%emt 0:00:30]} Rb8 {[%emt 0:00:30]} 32. Rb3 {[%emt 0:00:30]} a6 {[%emt 0:00:30]} 33. a4 {[%emt 0:00:30]} Nf6 {[%emt 0:00:30]} 34. b5 {[%emt 0:00:30]} axb5 {[%emt 0:00:30]} 35. axb5 {[%emt 0:00:30]} Rgg8 {[%emt 0:00:30]} 36. Qb2 {[%emt 0:00:30]} Qc7 {[%emt 0:00:30]} 37. Qb1 {[%emt 0:00:30]} Nd7 {[%emt 0:00:30]} 38. Kh2 {[%emt 0:00:30]} Ra8 {[%emt 0:00:30]} 39. Rgb2 {[%emt 0:00:30]} Rgb8 {[%emt 0:00:30]} 40. Qd1 {[%emt 0:00:30]} Nf6 {[%emt 0:00:30]} 41. Qb1 Nd7 {[%emt 0:00:30]} 42. Kg2 {[%emt 0:01:00]} Ke7 {[%emt 0:00:30]} 43. Re3 {[%emt 0:00:30]} Kf7 {[%emt 0:00:30]} 44. Ra2 {[%emt 0:00:30]} Rxa2+ {[%emt 0:00:30]} 45. Qxa2 {[%emt 0:00:30]} cxb5 {[%emt 0:00:30]} 46. Qe2 {[%emt 0:00:30]} Nf6 {[%emt 0:00:30]} 47. Rxe6 {[%emt 0:00:30]} Ra8 {[%emt 0:00:30]} 48. Re5 {[%emt 0:00:30]} Qd7 {[%emt 0:00:30]} 49. Bb4 {[%emt 0:00:30]} Re8 {[%emt 0:00:30]} 50. Qd3 {[%emt 0:00:30]} Rxe5 {[%emt 0:00:30]} 51. fxe5 {[%emt 0:00:30]} Ne4 {[%emt 0:00:30]} 52. Qf3 {[%emt 0:00:30]} Kg6 {[%emt 0:00:30]} 53. Qa3 {[%emt 0:00:30]} f4 {[%emt 0:00:30]} 54. Qf3 {[%emt 0:00:30]} fxg3 {[%emt 0:00:30]} 55. Be1 {[%emt 0:00:30]} Qf5 {[%emt 0:00:30]} 56. Qb3 {[%emt 0:00:30]} Qg4 {[%emt 0:00:30]} 57. Qxb5 {[%emt 0:00:30]} Qxh4 {[%emt 0:00:30]} 58. Qe8+ {[%emt 0:00:30]} Kg7 {[%emt 0:00:30]} 59. Qd7+ {[%emt 0:00:30]} Kg6 {[%emt 0:00:30]} 60. Qxd5 {[%emt 0:00:30]} Qh2+ {[%emt 0:00:30]} 61. Kf3 {[%emt 0:00:30]} Qh1+ {[%emt 0:00:30]} 62. Kf4 {[%emt 0:00:30]} Qf1+ {[%emt 0:00:30]} 0-1

[Event "FISCA Open 2022"]
[Site "Cap Aurora"]
[Date "2022.06.28"]
[Round "8.13"]
[White "Chicarosie, Ioana-Bianca"]
[Black "Sava, Robert-Gabriel"]
[Result "1/2-1/2"]
[ECO "A80"]
[WhiteElo "1605"]
[BlackElo "1821"]
[Annotator "NA RC"]
[PlyCount "72"]
[EventDate "2022.06.22"]
[EventType "swiss"]
[EventCountry "ROU"]
[SourceTitle "playchess.com"]
[Source "ChessBase"]
[SourceQuality "1"]
[TimeControl "5400+30"]

1. d4 {[%emt 0:00:03]} f5 {[%emt 0:00:33]} 2. Nd2 {[%emt 0:00:27]} Nf6 {[%emt 0:00:24]} 3. e3 {[%emt 0:00:08]} g6 {[%emt 0:00:15]} 4. Bd3 {[%emt 0:00:08]} Bg7 {[%emt 0:00:20]} 5. Ngf3 {[%emt 0:00:18]} O-O {[%emt 0:00:30]} 6. e4 {[%emt 0:00:21]} fxe4 {[%emt 0:00:23]} 7. Nxe4 {[%emt 0:00:15]} Nxe4 {[%emt 0:00:54]} 8. Bxe4 {[%emt 0:00:07]} d5 {[%emt 0:00:30]} 9. Bd3 {[%emt 0:00:55]} Nc6 {[%emt 0:02:09]} 10. Be3 {[%emt 0:05:33]} e5 {[%emt 0:01:54]} 11. dxe5 {[%emt 0:02:32]} Nxe5 {[%emt 0:03:25]} 12. Nxe5 {[%emt 0:01:10]} Bxe5 {[%emt 0:00:09]} 13. c3 {[%emt 0:01:11]} c6 {[%emt 0:01:37]} 14. Qd2 {[%emt 0:02:46]} Bf5 {[%emt 0:04:40]} 15. O-O-O {[%emt 0:02:06]} Qd7 {[%emt 0:09:45]} 16. h3 {[%emt 0:08:12]} Bg7 {[%emt 0:02:39]} 17. f4 {[%emt 0:03:43]} Bxd3 {[%emt 0:02:42]} 18. Qxd3 {[%emt 0:00:10]} b5 {[%emt 0:01:58]} 19. Rhf1 {[%emt 0:03:21]} Rae8 {[%emt 0:04:25]} 20. Rde1 {[%emt 0:08:31]} Re4 {[%emt 0:02:32]} 21. Bd2 {[%emt 0:02:42]} Rfe8 {[%emt 0:01:11]} 22. Rxe4 {[%emt 0:04:05]} Rxe4 {[%emt 0:00:34]} 23. Re1 {[%emt 0:00:10]} Qe6 {[%emt 0:01:44]} 24. Rxe4 {[%emt 0:01:31]} dxe4 {[%emt 0:00:45]} 25. Qe3 {[%emt 0:00:29]} a5 {[%emt 0:01:35]} 26. Kc2 {[%emt 0:06:44]} a4 {[%emt 0:01:30]} 27. b3 {[%emt 0:01:45]} axb3+ {[%emt 0:00:11]} 28. axb3 {[%emt 0:00:04]} Qd5 {[%emt 0:00:16]} 29. Qe2 {[%emt 0:05:10]} Kf7 {[%emt 0:11:33]} 30. Be3 {[%emt 0:01:59]} Bf8 {[%emt 0:06:00]} 31. c4 {[%emt 0:05:30]} bxc4 {[%emt 0:05:25]} 32. Qxc4 {[%emt 0:00:25]} Ke6 {[%emt 0:00:57]} 33. g4 {[%emt 0:04:07]} Be7 {[%emt 0:01:37]} 34. Bd4 {[%emt 0:08:40]} Bd6 {[%emt 0:01:54]} 35. Be3 {[%emt 0:00:35]} Be7 {[%emt 0:00:40]} 36. Bd4 {[%emt 0:00:14]} Bd6 {[%emt 0:01:03]} 1/2-1/2

[Event "FISCA Open 2022"]
[Site "Cap Aurora"]
[Date "2022.06.29"]
[Round "9.1"]
[White "Petre, Nad-Titus"]
[Black "Girmacea, Bogdan"]
[Result "1/2-1/2"]
[ECO "A13"]
[WhiteElo "2297"]
[BlackElo "2133"]
[Annotator "ChessBase"]
[PlyCount "56"]
[EventDate "2022.06.22"]
[EventType "swiss"]
[EventCountry "ROU"]
[SourceTitle "playchess.com"]
[Source "ChessBase"]
[SourceQuality "1"]
[TimeControl "5400+30"]

1. Nf3 {[%emt 0:00:04]} d5 {[%emt 0:01:12]} 2. e3 {[%emt 0:00:05]} Nf6 {[%emt 0:00:36]} 3. c4 {[%emt 0:00:08]} e6 {[%emt 0:00:36]} 4. Nc3 {[%emt 0:00:39]} Be7 {[%emt 0:00:57]} 5. b3 {[%emt 0:00:08]} O-O {[%emt 0:00:32]} 6. Bb2 {[%emt 0:00:21]} b6 {[%emt 0:02:04]} 7. cxd5 {[%emt 0:04:28]} Nxd5 {[%emt 0:08:53]} 8. h4 {[%emt 0:07:44]} Ba6 {[%emt 0:13:16]} 9. Bxa6 {[%emt 0:20:08]} Nxa6 {[%emt 0:00:16]} 10. Qb1 {[%emt 0:06:28]} Nab4 {[%emt 0:24:33]} 11. Ng5 {[%emt 0:02:14]} Nf6 {[%emt 0:00:47]} 12. d4 {[%emt 0:03:28]} Nbd5 {[%emt 0:19:13]} 13. Ne2 {[%emt 0:09:58]} h6 {[%emt 0:12:15]} 14. Nf3 {[%emt 0:00:12]} c5 {[%emt 0:02:13]} 15. O-O {[%emt 0:02:13]} cxd4 {[%emt 0:00:23]} 16. Nexd4 {[%emt 0:00:06]} Rc8 {[%emt 0:00:43]} 17. a3 {[%emt 0:04:50]} Qc7 {[%emt 0:02:03]} 18. Qd3 {[%emt 0:01:43]} Qb7 {[%emt 0:00:58]} 19. b4 {[%emt 0:03:01]} a6 {[%emt 0:00:34]} 20. Rac1 {[%emt 0:05:53]} b5 {[%emt 0:01:29]} 21. Ne5 {[%emt 0:01:30]} Nb6 {[%emt 0:01:23]} 22. Ndc6 {[%emt 0:01:15]} Rfe8 {[%emt 0:02:13]} 23. Bd4 {[%emt 0:07:34]} Nbd7 {[%emt 0:02:58]} 24. Nxe7+ {[%emt 0:06:32]} Rxe7 {[%emt 0:00:03]} 25. Nf3 {[%emt 0:01:32]} e5 {[%emt 0:01:13]} 26. Rxc8+ {[%emt 0:00:16]} Qxc8 {[%emt 0:00:04]} 27. Qc3 {[%emt 0:00:54]} Qxc3 {[%emt 0:00:46]} 28. Bxc3 {[%emt 0:00:01]} Nd5 {[%emt 0:00:20]} 1/2-1/2

[Event "FISCA Open 2022"]
[Site "Cap Aurora"]
[Date "2022.06.29"]
[Round "9.3"]
[White "Ardeleanu, Alin"]
[Black "Mihailiuc, Flavius-Iulian"]
[Result "1-0"]
[ECO "C46"]
[WhiteElo "2290"]
[BlackElo "1820"]
[Annotator "RC"]
[PlyCount "39"]
[EventDate "2022.06.22"]
[EventType "swiss"]
[EventCountry "ROU"]
[SourceTitle "playchess.com"]
[Source "ChessBase"]
[SourceQuality "1"]
[TimeControl "5400+30"]

1. e4 {[%emt 0:00:05]} e5 {[%emt 0:00:35]} 2. Nf3 {[%emt 0:00:30]} Nc6 {[%emt 0:00:11]} 3. Nc3 {[%emt 0:00:35]} Bc5 {[%emt 0:01:18]} 4. Nxe5 {[%emt 0:01:24]} Nxe5 {[%emt 0:09:02]} 5. d4 {[%emt 0:00:42]} Bxd4 {[%emt 0:00:07]} 6. Qxd4 {[%emt 0:00:12]} Qf6 {[%emt 0:00:12]} 7. Nb5 {[%emt 0:22:17]} d6 {[%emt 0:43:31]} 8. Qc3 {[%emt 0:07:24]} Kf8 {[%emt 0:05:07]} 9. Qxc7 {[%emt 0:19:57]} Be6 {[%emt 0:07:09]} 10. Qxd6+ {[%emt 0:00:22]} Ne7 {[%emt 0:00:16]} 11. h4 {[%emt 0:02:43]} h6 {[%emt 0:02:08]} 12. Bg5 {[%emt 0:06:48]} Nc4 {[%emt 0:15:44]} 13. Bxf6 {[%emt 0:08:05]} Nxd6 {[%emt 0:00:09]} 14. Bxg7+ {[%emt 0:03:04]} Kxg7 {[%emt 0:00:03]} 15. Nxd6 {[%emt 0:00:05]} Rhd8 {[%emt 0:02:08]} 16. O-O-O {[%emt 0:00:36]} a5 {[%emt 0:04:17]} 17. a3 {[%emt 0:02:07]} Kf6 {[%emt 0:00:40]} 18. Bc4 {[%emt 0:02:26]} Bxc4 {[%emt 0:01:33]} 19. Nxc4 {[%emt 0:00:05]} Rdc8 {[%emt 0:00:57]} 20. Nb6 {[%emt 0:00:20]} 1-0

[Event "FISCA Open 2022"]
[Site "Cap Aurora"]
[Date "2022.06.29"]
[Round "9.4"]
[White "Coca, Cristi-Iulian"]
[Black "Capragiu, Matei-Stefan"]
[Result "1-0"]
[ECO "A26"]
[WhiteElo "2174"]
[BlackElo "1925"]
[Annotator "RC"]
[PlyCount "75"]
[EventDate "2022.06.22"]
[EventType "swiss"]
[EventCountry "ROU"]
[SourceTitle "playchess.com"]
[Source "ChessBase"]
[SourceQuality "1"]
[TimeControl "5400+30"]

1. c4 {[%emt 0:00:09]} Nf6 {[%emt 0:00:16]} 2. Nc3 {[%emt 0:00:08]} g6 {[%emt 0:00:04]} 3. Nf3 {[%emt 0:04:37]} Bg7 {[%emt 0:00:09]} 4. g3 {[%emt 0:00:38]} d6 {[%emt 0:00:23]} 5. Bg2 {[%emt 0:00:04]} O-O {[%emt 0:00:15]} 6. O-O {[%emt 0:00:05]} Nc6 {[%emt 0:00:04]} 7. Rb1 {[%emt 0:00:22]} e5 {[%emt 0:01:26]} 8. d3 {[%emt 0:00:05]} h6 {[%emt 0:07:20]} 9. b4 {[%emt 0:00:50]} Be6 {[%emt 0:00:15]} 10. b5 {[%emt 0:03:38]} Nd4 {[%emt 0:01:39]} 11. Nd2 {[%emt 0:03:42]} Qc8 {[%emt 0:11:37]} 12. e3 {[%emt 0:02:15]} Nf5 {[%emt 0:00:54]} 13. a4 {[%emt 0:01:10]} c6 {[%emt 0:00:33]} 14. Nde4 {[%emt 0:04:47]} Rd8 {[%emt 0:08:54]} 15. Nxf6+ {[%emt 0:01:43]} Bxf6 {[%emt 0:00:14]} 16. e4 {[%emt 0:00:01]} Nd4 {[%emt 0:00:54]} 17. Bxh6 {[%emt 0:00:37]} Bh3 {[%emt 0:03:24]} 18. Ne2 {[%emt 0:03:08]} Kh7 {[%emt 0:05:43]} 19. Nxd4 {[%emt 0:01:21]} Kxh6 {[%emt 0:05:45]} 20. Nc2 {[%emt 0:01:30]} Bxg2 {[%emt 0:00:35]} 21. Kxg2 {[%emt 0:00:08]} Kg7 {[%emt 0:00:04]} 22. Ne3 {[%emt 0:01:38]} Bg5 {[%emt 0:02:51]} 23. f4 {[%emt 0:06:13]} exf4 {[%emt 0:03:03]} 24. gxf4 {[%emt 0:00:02]} Rh8 {[%emt 0:02:58]} 25. Qg4 {[%emt 0:09:51]} Qxg4+ {[%emt 0:01:22]} 26. Nxg4 {[%emt 0:00:01]} Bd8 {[%emt 0:02:22]} 27. f5 {[%emt 0:18:28]} gxf5 {[%emt 0:02:11]} 28. Rxf5 {[%emt 0:00:24]} Bb6 {[%emt 0:01:06]} 29. bxc6 {[%emt 0:00:36]} bxc6 {[%emt 0:00:09]} 30. a5 {[%emt 0:00:13]} Bd4 {[%emt 0:00:21]} 31. Rb7 {[%emt 0:00:35]} Rhf8 {[%emt 0:01:11]} 32. a6 {[%emt 0:02:33]} Kg6 {[%emt 0:10:51]} 33. Rd7 {[%emt 0:01:14]} Rad8 {[%emt 0:01:25]} 34. Rfxf7 {[%emt 0:00:42]} Rxd7 {[%emt 0:01:12]} 35. Rxd7 {[%emt 0:00:02]} Kg5 {[%emt 0:00:30]} 36. h3 {[%emt 0:00:49]} Kf4 {[%emt 0:02:49]} 37. Rxd6 {[%emt 0:02:16]} c5 {[%emt 0:01:51]} 38. Rd7 {[%emt 0:01:59]} 1-0

[Event "FISCA Open 2022"]
[Site "Cap Aurora"]
[Date "2022.06.29"]
[Round "9.5"]
[White "Breahna, Radu"]
[Black "Trifoi, Mihaela-Ioana"]
[Result "0-1"]
[ECO "D36"]
[WhiteElo "2142"]
[BlackElo "1949"]
[Annotator "RC"]
[PlyCount "78"]
[EventDate "2022.06.22"]
[EventType "swiss"]
[EventCountry "ROU"]
[SourceTitle "playchess.com"]
[Source "ChessBase"]
[SourceQuality "1"]
[TimeControl "5400+30"]

1. d4 {[%emt 0:02:57]} d5 {[%emt 0:00:08]} 2. c4 {[%emt 0:00:47]} e6 {[%emt 0:00:05]} 3. Nc3 {[%emt 0:00:11]} Nf6 {[%emt 0:00:05]} 4. cxd5 {[%emt 0:00:31]} exd5 {[%emt 0:00:06]} 5. Bg5 {[%emt 0:00:29]} Be7 {[%emt 0:00:06]} 6. e3 {[%emt 0:00:58]} h6 {[%emt 0:03:53]} 7. Bh4 {[%emt 0:01:28]} O-O {[%emt 0:00:08]} 8. Bd3 {[%emt 0:01:40]} Nbd7 {[%emt 0:00:29]} 9. Qc2 {[%emt 0:02:42]} Re8 {[%emt 0:00:18]} 10. Nf3 {[%emt 0:02:59]} Nf8 {[%emt 0:00:51]} 11. O-O {[%emt 0:07:10]} c6 {[%emt 0:00:16]} 12. Rab1 {[%emt 0:08:43]} Ne4 {[%emt 0:02:31]} 13. Bxe7 {[%emt 0:03:08]} Qxe7 {[%emt 0:00:03]} 14. b4 {[%emt 0:01:00]} a6 {[%emt 0:02:02]} 15. a4 {[%emt 0:07:36]} Nxc3 {[%emt 0:00:33]} 16. Qxc3 {[%emt 0:00:13]} Be6 {[%emt 0:00:03]} 17. Nd2 {[%emt 0:08:30]} Nd7 {[%emt 0:00:29]} 18. Nb3 {[%emt 0:02:44]} Nb6 {[%emt 0:01:59]} 19. Nc5 {[%emt 0:04:01]} Nc4 {[%emt 0:07:00]} 20. Bxc4 {[%emt 0:10:36]} dxc4 {[%emt 0:00:05]} 21. a5 {[%emt 0:02:31]} Bd5 {[%emt 0:01:45]} 22. e4 {[%emt 0:02:24]} Be6 {[%emt 0:05:02]} 23. Rfe1 {[%emt 0:09:45]} Rad8 {[%emt 0:01:27]} 24. Rbc1 {[%emt 0:03:44]} Bc8 {[%emt 0:01:38]} 25. Qxc4 {[%emt 0:00:59]} Rd6 {[%emt 0:00:35]} 26. Rc3 {[%emt 0:03:50]} Red8 {[%emt 0:01:31]} 27. Rd3 {[%emt 0:00:43]} Rg6 {[%emt 0:01:42]} 28. Ree3 {[%emt 0:01:35]} Kh8 {[%emt 0:07:12]} 29. h3 {[%emt 0:03:12]} Qc7 {[%emt 0:09:10]} 30. Rf3 {[%emt 0:02:01]} Rf8 {[%emt 0:01:50]} 31. d5 {[%emt 0:02:28]} cxd5 {[%emt 0:00:45]} 32. Qxd5 {[%emt 0:01:02]} b6 {[%emt 0:00:59]} 33. axb6 {[%emt 0:00:31]} Rxb6 {[%emt 0:00:13]} 34. Rd4 {[%emt 0:00:38]} a5 {[%emt 0:00:23]} 35. bxa5 {[%emt 0:01:49]} Rb1+ {[%emt 0:00:06]} 36. Rd1 {[%emt 0:00:19]} Rxd1+ {[%emt 0:00:04]} 37. Qxd1 {[%emt 0:00:08]} Qxc5 {[%emt 0:00:03]} 38. Qa1 {[%emt 0:01:31]} Bb7 {[%emt 0:00:42]} 39. a6 {[%emt 0:01:41]} Bxe4 {[%emt 0:53:43]} 0-1

[Event "FISCA Open 2022"]
[Site "Cap Aurora"]
[Date "2022.06.29"]
[Round "9.6"]
[White "Mintau, Andrei-Catalin"]
[Black "Prisacaru, Stefan-Emilian"]
[Result "1-0"]
[ECO "B06"]
[WhiteElo "2130"]
[BlackElo "1937"]
[Annotator "RC"]
[PlyCount "77"]
[EventDate "2022.06.22"]
[EventType "swiss"]
[EventCountry "ROU"]
[SourceTitle "playchess.com"]
[Source "ChessBase"]
[SourceQuality "1"]
[TimeControl "5400+30"]

1. e4 {[%emt 0:00:02]} g6 {[%emt 0:00:03]} 2. d4 {[%emt 0:00:02]} Bg7 {[%emt 0:00:04]} 3. Nc3 {[%emt 0:00:03]} d6 {[%emt 0:00:03]} 4. f4 {[%emt 0:00:03]} a6 {[%emt 0:00:03]} 5. Nf3 {[%emt 0:00:12]} b5 {[%emt 0:00:02]} 6. Bd3 {[%emt 0:00:39]} Nd7 {[%emt 0:00:05]} 7. e5 {[%emt 0:00:17]} c5 {[%emt 0:00:06]} 8. Be3 {[%emt 0:00:22]} Nh6 {[%emt 0:09:32]} 9. Be4 {[%emt 0:00:05]} Rb8 {[%emt 0:00:15]} 10. Qe2 {[%emt 0:14:04]} O-O {[%emt 0:10:39]} 11. Rd1 {[%emt 0:01:07]} c4 {[%emt 0:02:59]} 12. O-O {[%emt 0:09:54]} f5 {[%emt 0:02:47]} 13. Bd5+ {[%emt 0:01:48]} Kh8 {[%emt 0:00:29]} 14. Ng5 {[%emt 0:00:53]} Nb6 {[%emt 0:01:35]} 15. Be6 {[%emt 0:02:17]} d5 {[%emt 0:07:31]} 16. Qf3 {[%emt 0:01:02]} Bb7 {[%emt 0:06:25]} 17. h3 {[%emt 0:05:38]} b4 {[%emt 0:04:55]} 18. Ne2 {[%emt 0:00:11]} Bc8 {[%emt 0:07:21]} 19. g4 {[%emt 0:01:35]} Qe8 {[%emt 0:14:24]} 20. Ng3 {[%emt 0:08:09]} Qc6 {[%emt 0:04:39]} 21. gxf5 {[%emt 0:01:39]} Nxf5 {[%emt 0:04:25]} 22. Nxf5 {[%emt 0:20:34]} Bxe6 {[%emt 0:04:23]} 23. Nxe7 {[%emt 0:00:06]} Qd7 {[%emt 0:02:40]} 24. f5 {[%emt 0:00:21]} Bxf5 {[%emt 0:04:39]} 25. Nxf5 {[%emt 0:00:06]} Rxf5 {[%emt 0:00:15]} 26. Qg3 {[%emt 0:00:07]} Rbf8 {[%emt 0:05:14]} 27. e6 {[%emt 0:00:41]} Rxf1+ {[%emt 0:02:34]} 28. Rxf1 {[%emt 0:00:16]} Rxf1+ {[%emt 0:00:13]} 29. Kxf1 {[%emt 0:00:00]} Qe8 {[%emt 0:00:18]} 30. Qd6 {[%emt 0:06:25]} c3 {[%emt 0:01:21]} 31. b3 {[%emt 0:00:35]} Nc8 {[%emt 0:00:23]} 32. Qxd5 {[%emt 0:00:47]} Qb5+ {[%emt 0:02:16]} 33. Qxb5 {[%emt 0:00:06]} axb5 {[%emt 0:00:03]} 34. d5 {[%emt 0:00:33]} Bf8 {[%emt 0:00:29]} 35. Nf7+ {[%emt 0:00:24]} Kg8 {[%emt 0:00:05]} 36. Bf4 {[%emt 0:00:03]} Nb6 {[%emt 0:01:41]} 37. d6 {[%emt 0:00:07]} Nd5 {[%emt 0:00:03]} 38. d7 {[%emt 0:00:28]} Be7 {[%emt 0:00:10]} 39. Bg5 {[%emt 0:00:15]} 1-0

[Event "FISCA Open 2022"]
[Site "Cap Aurora"]
[Date "2022.06.29"]
[Round "9.8"]
[White "Iordache, Alexia-Andreea"]
[Black "Negrean, Andrei"]
[Result "1/2-1/2"]
[ECO "B90"]
[WhiteElo "1658"]
[BlackElo "1846"]
[Annotator "NA RC"]
[PlyCount "113"]
[EventDate "2022.06.22"]
[EventType "swiss"]
[EventCountry "ROU"]
[SourceTitle "playchess.com"]
[Source "ChessBase"]
[SourceQuality "1"]
[TimeControl "5400+30"]

1. e4 {[%emt 0:00:01]} c5 {[%emt 0:00:09]} 2. Nf3 {[%emt 0:00:03]} d6 {[%emt 0:00:14]} 3. d4 {[%emt 0:00:04]} cxd4 {[%emt 0:00:09]} 4. Nxd4 {[%emt 0:00:05]} Nf6 {[%emt 0:00:10]} 5. Nc3 {[%emt 0:00:05]} a6 {[%emt 0:00:27]} 6. f3 {[%emt 0:00:04]} e5 {[%emt 0:00:28]} 7. Nb3 {[%emt 0:00:06]} Be6 {[%emt 0:01:26]} 8. Be3 {[%emt 0:00:10]} Nbd7 {[%emt 0:01:31]} 9. Qd2 {[%emt 0:00:25]} h5 {[%emt 0:02:41]} 10. O-O-O {[%emt 0:00:24]} Rc8 {[%emt 0:00:54]} 11. Kb1 {[%emt 0:05:46]} Be7 {[%emt 0:07:00]} 12. Nd5 {[%emt 0:02:29]} Bxd5 {[%emt 0:01:07]} 13. exd5 {[%emt 0:00:06]} Nb6 {[%emt 0:09:09]} 14. Qa5 {[%emt 0:16:32]} Nc4 {[%emt 0:08:59]} 15. Bxc4 {[%emt 0:07:28]} Rxc4 {[%emt 0:00:11]} 16. Qxd8+ {[%emt 0:04:27]} Bxd8 {[%emt 0:00:23]} 17. Nd2 {[%emt 0:02:37]} Rc8 {[%emt 0:08:18]} 18. c4 {[%emt 0:03:52]} b5 {[%emt 0:08:59]} 19. b3 {[%emt 0:05:17]} Ba5 {[%emt 0:07:33]} 20. Rc1 {[%emt 0:08:06]} Bxd2 {[%emt 0:04:23]} 21. Bxd2 {[%emt 0:00:10]} bxc4 {[%emt 0:09:12]} 22. bxc4 {[%emt 0:02:51]} Nd7 {[%emt 0:03:40]} 23. Be3 {[%emt 0:07:20]} Ke7 {[%emt 0:06:18]} 24. Ka1 {[%emt 0:04:08]} Rc7 {[%emt 0:03:17]} 25. Rc3 {[%emt 0:03:11]} Rhc8 {[%emt 0:02:18]} 26. Rhc1 {[%emt 0:00:20]} h4 {[%emt 0:04:19]} 27. Kb2 {[%emt 0:04:33]} f6 {[%emt 0:04:19]} 28. R1c2 {[%emt 0:01:40]} Nc5 {[%emt 0:06:21]} 29. Bxc5 {[%emt 0:00:58]} Rxc5 {[%emt 0:00:10]} 30. Kc1 {[%emt 0:00:58]} g5 {[%emt 0:00:35]} 31. Kd2 {[%emt 0:00:47]} f5 {[%emt 0:00:43]} 32. Kd3 {[%emt 0:00:57]} Kd7 {[%emt 0:00:33]} 33. Rb3 {[%emt 0:01:23]} R5c7 {[%emt 0:00:32]} 34. Rb6 {[%emt 0:00:59]} a5 {[%emt 0:00:26]} 35. a4 {[%emt 0:02:04]} Ra7 {[%emt 0:00:35]} 36. Rcb2 {[%emt 0:01:08]} Rac7 {[%emt 0:00:22]} 37. Rb7 {[%emt 0:00:27]} Rxb7 {[%emt 0:00:34]} 38. Rxb7+ {[%emt 0:00:02]} Rc7 {[%emt 0:00:09]} 39. Rb8 {[%emt 0:00:56]} Rc8 {[%emt 0:00:28]} 40. Rb5 {[%emt 0:00:40]} g4 {[%emt 0:00:52]} 41. fxg4 {[%emt 0:01:25]} e4+ {[%emt 0:00:32]} 42. Kd4 {[%emt 0:00:34]} fxg4 {[%emt 0:00:18]} 43. Rxa5 {[%emt 0:00:27]} e3 {[%emt 0:00:18]} 44. Ra7+ {[%emt 0:02:47]} Kd8 {[%emt 0:00:38]} 45. Kxe3 {[%emt 0:00:53]} Rxc4 {[%emt 0:00:03]} 46. Rh7 {[%emt 0:04:35]} h3 {[%emt 0:00:40]} 47. gxh3 {[%emt 0:00:58]} gxh3 {[%emt 0:00:24]} 48. a5 {[%emt 0:00:59]} Ra4 $11 {[%emt 0:00:47]} 49. Ra7 {[%emt 0:04:41]} Ra2 {[%emt 0:00:25]} 50. Kf3 {[%emt 0:00:10]} Rxh2 {[%emt 0:00:10]} 51. Kg3 {[%emt 0:00:18]} Rd2 {[%emt 0:00:33]} 52. Kxh3 {[%emt 0:00:10]} Rxd5 {[%emt 0:01:48]} 53. Kg4 {[%emt 0:05:24]} Kc8 54. Kf4 {[%emt 0:00:30]} Kb8 55. Ra6 Kb7 56. Rb6+ {[%emt 0:01:00]} Ka7 {[%emt 0:02:00]} 57. Ke4 {[%emt 0:00:30]} 1/2-1/2